fUSD/lending_fUSD_20240119
["ID","MTS","AMOUNT","RATE_DAILY","PERIOD"]
[312201308,1705684339658,-294.81903496,0.00026027,2]
[312201309,1705684339667,-934.67,0.00026027,2]
[312201310,1705684339677,-1287.97,0.00026027,2]
[312201311,1705684339687,-500.0,0.00026027,2]
[312201312,1705684339697,-1004.82,0.00026027,2]
[312201313,1705684339707,-718.68,0.00026027,2]
[312201314,1705684339717,-500.0,0.00026027,2]
[312201315,1705684339727,-155.44,0.00026027,2]
[312201316,1705684339736,-2888.65,0.00026027,2]
[312201317,1705684339746,-767.72,0.00026027,2]
[312201318,1705684339756,-751.55,0.00026027,2]
[312201319,1705684339766,-500.0,0.00026027,2]
[312201320,1705684339775,-474.99086489,0.00026027,2]
[312201321,1705684339785,-553.54,0.00026027,2]
[312201322,1705684339796,-1564.8,0.00026027,2]
[312201323,1705684339806,-2087.23,0.00026027,2]
[312201324,1705684339816,-635.0,0.00026027,2]
[312201325,1705684339826,-779.44,0.00026027,2]
[312201326,1705684339836,-692.16,0.00026027,2]
[312201327,1705684339846,-776.21,0.00026027,2]
[312201328,1705684339856,-801.0,0.00026027,2]
[312201329,1705684339866,-1305.59,0.00026027,2]
[312201330,1705684339875,-540.08,0.00026027,2]
[312201331,1705684339885,-657.66,0.00026027,2]
[312201332,1705684339895,-3922.54,0.00026027,2]
[312201333,1705684339904,-2489.47,0.00026027,2]
[312201334,1705684339914,-466.44828338,0.00026027,2]
[312201335,1705684339923,-1067.45,0.00026027,5]
[312201336,1705684339932,-500.0,0.00026027,2]
[312201337,1705684339943,-574.27,0.00026027,2]
[312201338,1705684339952,-2247.96,0.00026027,2]
[312201339,1705684339961,-4625.17,0.00026027,2]
[312201340,1705684339971,-500.0,0.00026027,2]
[312201341,1705684339981,-2955.88,0.00026027,2]
[312201342,1705684339990,-500.0,0.00026027,2]
[312201343,1705684340000,-500.0,0.00026027,2]
[312201344,1705684340010,-792.41,0.00026027,2]
[312201345,1705684340021,-500.0,0.00026027,2]
[312201346,1705684340030,-3375.04,0.00026027,2]
[312201347,1705684340042,-1145.18,0.00026027,2]
[312201348,1705684340052,-1482.95,0.00026027,2]
[312201349,1705684340063,-3968.6,0.00026027,2]
[312201350,1705684340073,-642.03,0.00026027,2]
[312201351,1705684340083,-759.02,0.00026027,2]
[312201352,1705684340095,-519.9,0.00026027,2]
[312201353,1705684340105,-1025.72,0.00026027,2]
[312201354,1705684340115,-2480.63,0.00026027,2]
[312201355,1705684340124,-733.85,0.00026027,2]
[312201356,1705684340135,-3098.92,0.00026027,2]
[312201357,1705684340144,-500.0,0.00026027,2]
[312201358,1705684340154,-6021.86,0.00026027,2]
[312201359,1705684340164,-753.94,0.00026027,2]
[312201360,1705684340174,-500.0,0.00026027,2]
[312201361,1705684340185,-434.52329407,0.00026027,2]
[312201362,1705684340195,-978.79,0.00026027,2]
[312201363,1705684340206,-4921.79,0.00026027,2]
[312201364,1705684340501,-8646.25,0.00026027,2]
[312201365,1705684340526,-682.8,0.00026027,2]
[312201366,1705684340537,-1163.38,0.00026027,2]
[312201367,1705684340552,-500.0,0.00026027,2]
[312201368,1705684340562,-2479.77,0.00026027,2]
[312201369,1705684340576,-395.49134645,0.00026027,2]
[312201370,1705684340587,-805.35,0.00026027,2]
[312201371,1705684340598,-500.0,0.00026027,2]
[312201372,1705684340609,-1096.89,0.00026027,2]
[312201373,1705684340620,-846.06,0.00026027,2]
[312201374,1705684340630,-522.24,0.00026027,2]
[312201375,1705684340641,-1247.86,0.00026027,2]
[312201376,1705684340652,-1521.64,0.00026027,2]
[312201377,1705684340663,-810.2,0.00026027,2]
[312201378,1705684340674,-1270.75,0.00026027,2]
[312201379,1705684340686,-500.0,0.00026027,2]
[312201380,1705684340697,-648.61,0.00026027,2]
[312201381,1705684340708,-1158.73,0.00026027,2]
[312201382,1705684340719,-1375.2,0.00026027,2]
[312201383,1705684340730,-17751.82,0.00026027,2]
[312201384,1705684340741,-503.19,0.00026027,2]
[312201385,1705684340751,-1097.0,0.00026027,2]
[312201386,1705684340761,-1690.88,0.00026027,2]
[312201387,1705684340771,-1798.17,0.00026027,2]
[312201388,1705684340782,-662.05,0.00026027,2]
[312201389,1705684340794,-820.42,0.00026027,2]
[312201390,1705684340806,-1315.74,0.00026027,2]
[312201391,1705684340816,-2334.22,0.00026027,2]
[312201392,1705684340826,-232.9262022,0.00026027,2]
[312201393,1705684340836,-918.43,0.00026027,2]
[312201394,1705684340846,-1931.87,0.00026027,2]
[312201395,1705684340856,-2683.86,0.00026027,2]
[312201396,1705684340865,-759.51,0.00026027,2]
[312201397,1705684340875,-1614.07,0.00026027,2]
[312201398,1705684340885,-4770.94,0.00026027,2]
[312201399,1705684340895,-1303.95,0.00026027,2]
[312201400,1705684340905,-658.2,0.00026027,2]
[312201401,1705684340915,-500.0,0.00026027,2]
[312201402,1705684340925,-500.0,0.00026027,2]
[312201403,1705684340934,-500.0,0.00026027,2]
[312201404,1705684340944,-695.99,0.00026027,2]
[312201405,1705684340953,-6873.67,0.00026027,2]
[312201406,1705684340963,-8690.7,0.00026027,2]
[312201407,1705684340973,-735.29,0.00026027,2]
[312201408,1705684340983,-500.0,0.00026027,2]
[312201409,1705684340993,-519.42,0.00026027,2]
[312201410,1705684341003,-1295.46,0.00026027,2]
[312201411,1705684341013,-1149.53,0.00026027,2]
[312201412,1705684341024,-870.11,0.00026027,2]
[312201413,1705684341034,-500.0,0.00026027,2]
[312201414,1705684341048,-500.0,0.00026027,2]
[312201415,1705684341060,-1617.17,0.00026027,2]
[312201416,1705684341070,-753.21,0.00026027,2]
[312201417,1705684341079,-763.08,0.00026027,2]
[312201418,1705684341092,-982.23,0.00026027,2]
[312201419,1705684341101,-1344.83,0.00026027,2]
[312201420,1705684341111,-512.26,0.00026027,2]
[312201421,1705684341120,-569.27,0.00026027,2]
[312201422,1705684341131,-597.5,0.00026027,2]
[312201423,1705684341141,-742.83,0.00026027,2]
[312201424,1705684341150,-500.0,0.00026027,2]
[312201425,1705684341160,-2112.76,0.00026027,2]
[312201426,1705684341171,-1184.32,0.00026027,2]
[312201427,1705684341180,-500.0,0.00026027,2]
[312201428,1705684341190,-4987.06,0.00026027,2]
[312201429,1705684341200,-500.0,0.00026027,2]
[312201430,1705684341210,-2960.59,0.00026027,2]
[312201431,1705684341220,-15338.55,0.00026027,2]
[312201432,1705684341230,-594.36,0.00026027,2]
[312201433,1705684341241,-2166.93,0.00026027,2]
[312201434,1705684341251,-500.0,0.00026027,2]
[312201435,1705684341261,-2307.01,0.00026027,2]
[312201436,1705684341271,-500.0,0.00026027,2]
[312201437,1705684341280,-500.0,0.00026027,2]
[312201438,1705684341290,-1238.0,0.00026027,2]
[312201439,1705684341301,-582.28,0.00026027,2]
[312201440,1705684341311,-861.16,0.00026027,2]
[312201441,1705684341322,-970.11,0.00026027,2]
[312201442,1705684341331,-1309.07,0.00026027,2]
[312201443,1705684341344,-1682.88,0.00026027,2]
[312201444,1705684341354,-687.38,0.00026027,2]
[312201445,1705684341363,-500.0,0.00026027,2]
[312201446,1705684341373,-500.0,0.00026027,2]
[312201447,1705684341383,-966.15,0.00026027,2]
[312201448,1705684341392,-1452.73,0.00026027,2]
[312201449,1705684341401,-543.77,0.00026027,2]
[312201450,1705684341410,-687.66,0.00026027,2]
[312201451,1705684341420,-789.87,0.00026027,2]
[312201452,1705684341429,-1600.24,0.00026027,2]
[312201453,1705684341438,-580.5,0.00026027,2]
[312201454,1705684341451,-724.98,0.00026027,2]
[312201455,1705684341461,-566.64,0.00026027,2]
[312201456,1705684341471,-500.0,0.00026027,2]
[312201457,1705684341480,-500.0,0.00026027,2]
[312201458,1705684341489,-2353.38,0.00026027,2]
[312201459,1705684341499,-1472.8,0.00026027,2]
[312201460,1705684341508,-500.0,0.00026027,2]
[312201461,1705684341517,-485.27227606,0.00026027,2]
[312201462,1705684341527,-982.82,0.00026027,2]
[312201463,1705684341536,-1029.65,0.00026027,2]
[312201464,1705684341547,-239.85,0.00026027,2]
[312201465,1705684341556,-1034.15,0.00026027,2]
[312201466,1705684341565,-500.0,0.00026027,2]
[312201467,1705684341574,-1105.06,0.00026027,2]
[312201468,1705684341584,-511.82,0.00026027,2]
[312201469,1705684341593,-2707.99,0.00026027,2]
[312201470,1705684341603,-1045.7,0.00026027,2]
[312201471,1705684341612,-1777.84,0.00026027,2]
[312201472,1705684341622,-536.83,0.00026027,2]
[312201473,1705684341631,-10382.29,0.00026027,2]
[312201474,1705684341641,-1339.3,0.00026027,2]
[312201475,1705684341651,-907.28,0.00026027,2]
[312201476,1705684341660,-1150.48,0.00026027,2]
[312201477,1705684341670,-3979.15,0.00026027,2]
[312201478,1705684341680,-1514.36,0.00026027,2]
[312201479,1705684341689,-524.59,0.00026027,2]
[312201480,1705684341699,-778.28,0.00026027,2]
[312201481,1705684341709,-5877.42,0.00026027,2]
[312201482,1705684341719,-848.6,0.00026027,2]
[312201483,1705684341728,-635.87,0.00026027,2]
[312201484,1705684341738,-733.77,0.00026027,2]
[312201485,1705684341747,-2258.64,0.00026027,2]
[312201486,1705684341756,-963.32,0.00026027,2]
[312201487,1705684341766,-500.0,0.00026027,2]
[312201488,1705684341776,-689.61,0.00026027,2]
[312201489,1705684341786,-3018.83,0.00026027,2]
[312201490,1705684341797,-649.04,0.00026027,2]
[312201491,1705684341807,-151.0,0.00026027,7]
[312201492,1705684341817,-466.441857,0.00026027,7]
[312201493,1705684341826,-466.441857,0.00026027,7]
[312201494,1705684341835,-204.07049,0.00026027,7]
[312201495,1705684341845,-204.07049,0.00026027,7]
[312201496,1705684341854,-500.0,0.00026027,2]
[312201497,1705684341864,-150.0,0.00026071,2]
[312201498,1705684341874,-150.0,0.00026071,2]
[312201499,1705684341883,-158.68816156,0.00026098,2]
[312201500,1705684341892,-158.0,0.000261,2]
[312201501,1705684341902,-836.0,0.00026137,2]
[312201502,1705684341912,-946.0,0.00026137,2]
[312201503,1705684341923,-500.0,0.00026154,2]
[312201504,1705684341933,-204.0,0.0002627,2]
[312201505,1705684341942,-206.0,0.0002627,2]
[312201506,1705684341952,-622.14,0.00026301,2]
[312201507,1705684341962,-500.0,0.00026301,2]
[312201508,1705684341972,-500.0,0.00026301,2]
[312201509,1705684341982,-542.14,0.00026301,2]
[312201510,1705684341992,-500.0,0.00026301,2]
[312201511,1705684342002,-500.0,0.00026301,2]
[312201512,1705684342012,-542.59,0.00026301,2]
[312201513,1705684342022,-500.0,0.00026301,2]
[312201514,1705684342031,-730.0,0.00026301,2]
[312201515,1705684342042,-528.39,0.00026301,2]
[312201516,1705684342053,-542.09,0.00026301,2]
[312201517,1705684342063,-500.0,0.00026301,2]
[312201518,1705684342073,-397.7946164,0.00026301,2]
[312201519,1705684342083,-676.04,0.00026301,2]
[312201520,1705684342094,-500.0,0.00026301,2]
[312201521,1705684342104,-808.53,0.00026301,2]
[312201522,1705684342115,-544.1,0.00026301,2]
[312201523,1705684342125,-807.4,0.00026301,2]
[312201524,1705684342135,-513.9,0.00026301,2]
[312201525,1705684342145,-394.69351079,0.00026301,2]
[312201526,1705684342154,-1752.26,0.00026301,2]
[312201527,1705684342164,-565.26,0.00026301,2]
[312201528,1705684342173,-500.0,0.00026301,2]
[312201529,1705684342182,-500.0,0.00026301,2]
[312201530,1705684342191,-638.62,0.00026301,2]
[312201531,1705684342200,-500.0,0.00026301,2]
[312201532,1705684342210,-702.27,0.00026301,2]
[312201533,1705684342219,-546.25,0.00026301,2]
[312201534,1705684342228,-500.0,0.00026301,2]
[312201535,1705684342240,-500.0,0.00026301,2]
[312201536,1705684342249,-500.0,0.00026301,2]
[312201537,1705684342258,-500.0,0.00026301,2]
[312201538,1705684342268,-1045.91,0.00026301,2]
[312201539,1705684342278,-500.0,0.00026301,2]
[312201540,1705684342287,-615.78,0.00026301,2]
[312201541,1705684342299,-546.84,0.00026301,2]
[312201542,1705684342308,-884.67,0.00026301,2]
[312201543,1705684342318,-679.98,0.00026301,2]
[312201544,1705684342327,-602.03,0.00026301,2]
[312201545,1705684342337,-500.0,0.00026301,2]
[312201546,1705684342346,-564.19008282,0.00026301,2]
[312201547,1705684342356,-1736.83,0.00026301,2]
[312201548,1705684342366,-715.58,0.00026301,2]
[312201549,1705684342375,-500.0,0.00026301,2]
[312201550,1705684342384,-648.18,0.00026301,2]
[312201551,1705684342393,-582.03,0.00026301,2]
[312201552,1705684342402,-500.0,0.00026301,2]
[312201553,1705684342411,-581.09,0.00026301,2]
[312201554,1705684342420,-588.13,0.00026301,2]
[312201555,1705684342429,-800.73,0.00026301,2]
[312201556,1705684342439,-524.92,0.00026301,2]
[312201557,1705684342449,-500.0,0.00026301,2]
[312201558,1705684342458,-729.35,0.00026301,2]
[312201559,1705684342468,-798.17,0.00026301,2]
[312201560,1705684342478,-510.07,0.00026301,2]
[312201561,1705684342487,-594.92,0.00026301,2]
[312201562,1705684342496,-789.92,0.00026301,2]
[312201563,1705684342506,-500.0,0.00026301,2]
[312201564,1705684342515,-192.31649958,0.00026301,2]
[312201565,1705684342525,-500.0,0.00026301,2]
[312201566,1705684342534,-547.54,0.00026301,2]
[312201567,1705684342546,-500.0,0.00026301,2]
[312201568,1705684342555,-836.55,0.00026301,2]
[312201569,1705684342565,-613.85,0.00026301,2]
[312201570,1705684342574,-563.98,0.00026301,2]
[312201571,1705684342583,-500.0,0.00026301,2]
[312201572,1705684342592,-1354.55,0.00026301,2]
[312201573,1705684342603,-661.22,0.00026301,2]
[312201574,1705684342613,-500.0,0.00026301,2]
[312201575,1705684342622,-521.39,0.00026301,2]
[312201576,1705684342632,-649.06,0.00026301,2]
[312201577,1705684342642,-942.15,0.00026301,2]
[312201578,1705684342651,-500.0,0.00026301,2]
[312201579,1705684342660,-665.24,0.00026301,2]
[312201580,1705684342670,-509.47,0.00026301,2]
[312201581,1705684342679,-567.16,0.00026301,2]
[312201582,1705684342689,-587.72,0.00026301,2]
[312201583,1705684342698,-609.03,0.00026301,2]
[312201584,1705684342708,-673.09,0.00026301,2]
[312201585,1705684342717,-738.2,0.00026301,2]
[312201586,1705684342727,-1257.45,0.00026301,2]
[312201587,1705684342736,-673.79,0.00026301,2]
[312201588,1705684342746,-624.73,0.00026301,2]
[312201589,1705684342755,-518.0,0.00026301,2]
[312201590,1705684342765,-500.0,0.00026301,2]
[312201591,1705684342774,-634.3,0.00026301,2]
[312201592,1705684342784,-500.0,0.00026301,2]
[312201593,1705684342795,-500.0,0.00026301,2]
[312201594,1705684342805,-315.13168818,0.00026301,2]
[312201595,1705684342815,-821.92,0.00026301,2]
[312201596,1705684342824,-500.0,0.00026301,2]
[312201597,1705684342834,-673.61,0.00026301,2]
[312201598,1705684342843,-500.0,0.00026301,2]
[312201599,1705684342853,-522.51,0.00026301,2]
[312201600,1705684342936,-543.84,0.00026301,2]
[312201601,1705684342945,-799.17,0.00026301,2]
[312201602,1705684342955,-862.29,0.00026301,2]
[312201603,1705684342964,-539.84,0.00026301,2]
[312201604,1705684342973,-903.19,0.00026301,2]
[312201605,1705684342983,-720.59,0.00026301,2]
[312201606,1705684342992,-790.36,0.00026301,2]
[312201607,1705684343002,-934.67,0.00026301,2]
[312201608,1705684343011,-1287.97,0.00026301,2]
[312201609,1705684343021,-500.0,0.00026301,2]
[312201610,1705684343030,-1004.82,0.00026301,2]
[312201611,1705684343039,-500.0,0.00026301,2]
[312201612,1705684343051,-718.68,0.00026301,2]
[312201613,1705684343061,-2888.65,0.00026301,2]
[312201614,1705684343070,-155.44,0.00026301,2]
[312201615,1705684343080,-767.72,0.00026301,2]
[312201616,1705684343091,-751.55,0.00026301,2]
[312201617,1705684343101,-500.0,0.00026301,2]
[312201618,1705684343110,-553.54,0.00026301,2]
[312201619,1705684343119,-1564.8,0.00026301,2]
[312201620,1705684343129,-2087.23,0.00026301,2]
[312201621,1705684343139,-635.0,0.00026301,2]
[312201622,1705684343148,-779.44,0.00026301,2]
[312201623,1705684343159,-692.16,0.00026301,2]
[312201624,1705684343170,-776.21,0.00026301,2]
[312201625,1705684343181,-801.0,0.00026301,2]
[312201626,1705684343191,-1305.59,0.00026301,2]
[312201627,1705684343201,-540.08,0.00026301,2]
[312201628,1705684343211,-657.66,0.00026301,2]
[312201629,1705684343220,-3922.54,0.00026301,2]
[312201630,1705684343229,-2489.47,0.00026301,2]
[312201631,1705684343239,-1067.45,0.00026301,5]
[312201632,1705684343249,-500.0,0.00026301,2]
[312201633,1705684343258,-574.27,0.00026301,2]
[312201634,1705684343268,-2247.96,0.00026301,2]
[312201635,1705684343277,-4625.17,0.00026301,2]
[312201636,1705684343288,-500.0,0.00026301,2]
[312201637,1705684343301,-2955.88,0.00026301,2]
[312201638,1705684343310,-500.0,0.00026301,2]
[312201639,1705684343319,-500.0,0.00026301,2]
[312201640,1705684343328,-792.41,0.00026301,2]
[312201641,1705684343337,-500.0,0.00026301,2]
[312201642,1705684343346,-3375.04,0.00026301,2]
[312201643,1705684343356,-1145.18,0.00026301,2]
[312201644,1705684343366,-1482.95,0.00026301,2]
[312201645,1705684343376,-3968.6,0.00026301,2]
[312201646,1705684343386,-642.03,0.00026301,2]
[312201647,1705684343396,-759.02,0.00026301,2]
[312201648,1705684343406,-519.9,0.00026301,2]
[312201649,1705684343416,-1025.72,0.00026301,2]
[312201650,1705684343426,-2480.63,0.00026301,2]
[312201651,1705684343435,-733.85,0.00026301,2]
[312201652,1705684343445,-3098.92,0.00026301,2]
[312201653,1705684343454,-500.0,0.00026301,2]
[312201654,1705684343465,-6021.86,0.00026301,2]
[312201655,1705684343475,-753.94,0.00026301,2]
[312201656,1705684343485,-500.0,0.00026301,2]
[312201657,1705684343494,-978.79,0.00026301,2]
[312201658,1705684343503,-4921.79,0.00026301,2]
[312201659,1705684343513,-8646.25,0.00026301,2]
[312201660,1705684343523,-682.8,0.00026301,2]
[312201661,1705684343532,-1163.38,0.00026301,2]
[312201662,1705684343544,-500.0,0.00026301,2]
[312201663,1705684343554,-2479.77,0.00026301,2]
[312201664,1705684343564,-805.35,0.00026301,2]
[312201665,1705684343573,-500.0,0.00026301,2]
[312201666,1705684343583,-1096.89,0.00026301,2]
[312201667,1705684343593,-846.06,0.00026301,2]
[312201668,1705684343603,-522.24,0.00026301,2]
[312201669,1705684343613,-1247.86,0.00026301,2]
[312201670,1705684343623,-1521.64,0.00026301,2]
[312201671,1705684343633,-810.2,0.00026301,2]
[312201672,1705684343642,-1270.75,0.00026301,2]
[312201673,1705684343652,-500.0,0.00026301,2]
[312201674,1705684343662,-648.61,0.00026301,2]
[312201675,1705684343672,-1158.73,0.00026301,2]
[312201676,1705684343681,-1375.2,0.00026301,2]
[312201677,1705684343691,-17751.82,0.00026301,2]
[312201678,1705684343701,-503.19,0.00026301,2]
[312201679,1705684343711,-1097.0,0.00026301,2]
[312201680,1705684343720,-1690.88,0.00026301,2]
[312201681,1705684343730,-1798.17,0.00026301,2]
[312201682,1705684343739,-662.05,0.00026301,2]
[312201683,1705684343749,-1315.74,0.00026301,2]
[312201684,1705684343758,-820.42,0.00026301,2]
[312201685,1705684343767,-2334.22,0.00026301,2]
[312201686,1705684343778,-918.43,0.00026301,2]
[312201687,1705684343788,-1931.87,0.00026301,2]
[312201688,1705684343799,-2683.86,0.00026301,2]
[312201689,1705684343809,-759.51,0.00026301,2]
[312201690,1705684343818,-1614.07,0.00026301,2]
[312201691,1705684343828,-4770.94,0.00026301,2]
[312201692,1705684343837,-1303.95,0.00026301,2]
[312201693,1705684343846,-658.2,0.00026301,2]
[312201694,1705684343856,-500.0,0.00026301,2]
[312201695,1705684343865,-500.0,0.00026301,2]
[312201696,1705684343875,-566.93015251,0.00026301,2]
[312201697,1705684343885,-695.99,0.00026301,2]
[312201698,1705684343895,-8690.7,0.00026301,2]
[312201699,1705684343905,-6873.67,0.00026301,2]
[312201700,1705684343914,-500.0,0.00026301,2]
[312201701,1705684343923,-735.29,0.00026301,2]
[312201702,1705684343933,-519.42,0.00026301,2]
[312201703,1705684343943,-1295.46,0.00026301,2]
[312201704,1705684343953,-1149.53,0.00026301,2]
[312201705,1705684343963,-870.11,0.00026301,2]
[312201706,1705684343973,-500.0,0.00026301,2]
[312201707,1705684343982,-500.0,0.00026301,2]
[312201708,1705684343992,-1617.17,0.00026301,2]
[312201709,1705684344001,-753.21,0.00026301,2]
[312201710,1705684344011,-763.08,0.00026301,2]
[312201711,1705684344020,-982.23,0.00026301,2]
[312201712,1705684344029,-1344.83,0.00026301,2]
[312201713,1705684344039,-512.26,0.00026301,2]
[312201714,1705684344052,-597.5,0.00026301,2]
[312201715,1705684344062,-569.27,0.00026301,2]
[312201716,1705684344072,-742.83,0.00026301,2]
[312201717,1705684344082,-449.71111771,0.00026301,2]
[312201718,1705684344092,-500.0,0.00026301,2]
[312201719,1705684344102,-2112.76,0.00026301,2]
[312201720,1705684344111,-4987.06,0.00026301,2]
[312201721,1705684344121,-1184.32,0.00026301,2]
[312201722,1705684344131,-2960.59,0.00026301,2]
[312201723,1705684344141,-500.0,0.00026301,2]
[312201724,1705684344151,-15338.55,0.00026301,2]
[312201725,1705684344162,-594.36,0.00026301,2]
[312201726,1705684344172,-2166.93,0.00026301,2]
[312201727,1705684344181,-500.0,0.00026301,2]
[312201728,1705684344190,-2307.01,0.00026301,2]
[312201729,1705684344200,-500.0,0.00026301,2]
[312201730,1705684344209,-298.36584455,0.00026301,2]
[312201731,1705684344218,-1238.0,0.00026301,2]
[312201732,1705684344228,-582.28,0.00026301,2]
[312201733,1705684344238,-861.16,0.00026301,2]
[312201734,1705684344248,-970.11,0.00026301,2]
[312201735,1705684344257,-1309.07,0.00026301,2]
[312201736,1705684344267,-1682.88,0.00026301,2]
[312201737,1705684344276,-687.38,0.00026301,2]
[312201738,1705684344286,-500.0,0.00026301,2]
[312201739,1705684344296,-500.0,0.00026301,2]
[312201740,1705684344306,-966.15,0.00026301,2]
[312201741,1705684344315,-1452.73,0.00026301,2]
[312201742,1705684344324,-543.77,0.00026301,2]
[312201743,1705684344334,-687.66,0.00026301,2]
[312201744,1705684344344,-789.87,0.00026301,2]
[312201745,1705684344354,-1600.24,0.00026301,2]
[312201746,1705684344363,-580.5,0.00026301,2]
[312201747,1705684344373,-724.98,0.00026301,2]
[312201748,1705684344382,-566.64,0.00026301,2]
[312201749,1705684344392,-500.0,0.00026301,2]
[312201750,1705684344402,-500.0,0.00026301,2]
[312201751,1705684344411,-2353.38,0.00026301,2]
[312201752,1705684344421,-1472.8,0.00026301,2]
[312201753,1705684344430,-500.0,0.00026301,2]
[312201754,1705684344440,-982.82,0.00026301,2]
[312201755,1705684344450,-1029.65,0.00026301,2]
[312201756,1705684344460,-1034.15,0.00026301,2]
[312201757,1705684344469,-500.0,0.00026301,2]
[312201758,1705684344479,-1105.06,0.00026301,2]
[312201759,1705684344488,-511.82,0.00026301,2]
[312201760,1705684344498,-2707.99,0.00026301,2]
[312201761,1705684344507,-1045.7,0.00026301,2]
[312201762,1705684344516,-1777.84,0.00026301,2]
[312201763,1705684344526,-536.83,0.00026301,2]
[312201764,1705684344535,-10382.29,0.00026301,2]
[312201765,1705684344547,-1339.3,0.00026301,2]
[312201766,1705684344557,-907.28,0.00026301,2]
[312201767,1705684344566,-3979.15,0.00026301,2]
[312201768,1705684344577,-1150.48,0.00026301,2]
[312201769,1705684344586,-1514.36,0.00026301,2]
[312201770,1705684344596,-524.59,0.00026301,2]
[312201771,1705684344605,-778.28,0.00026301,2]
[312201772,1705684344614,-5877.42,0.00026301,2]
[312201773,1705684344623,-848.6,0.00026301,2]
[312201774,1705684344632,-635.87,0.00026301,2]
[312201775,1705684344641,-733.77,0.00026301,2]
[312201776,1705684344650,-2258.64,0.00026301,2]
[312201777,1705684344659,-963.32,0.00026301,2]
[312201778,1705684344668,-500.0,0.00026301,2]
[312201779,1705684344677,-689.61,0.00026301,2]
[312201780,1705684344686,-3018.83,0.00026301,2]
[312201781,1705684344697,-649.04,0.00026301,2]
[312201782,1705684344706,-155.230949,0.00026301,7]
[312201783,1705684344715,-158.68816156,0.00026304,2]
[312201784,1705684344725,-21643.3169226,0.00026317,2]
[312201785,1705684344734,-1133.75,0.0002632,2]
[312201786,1705684344744,-8607.60014572,0.000264,2]
[312201787,1705684344754,-260463.74,0.00026403,3]
[312201788,1705684344764,-91191.49,0.00026403,3]
[312201789,1705684344773,-32962.74,0.00026403,3]
[312201790,1705684344782,-87012.37,0.00026403,3]
[312201791,1705684344793,-5002.7,0.00026403,3]
[312201792,1705684344805,-23702.63,0.00026403,3]
[312201793,1705684344815,-158.68816156,0.00026511,2]
[312201794,1705684344824,-51461.80373841,0.00026574,2]
[312201795,1705684344835,-622.14,0.00026575,2]
[312201796,1705684344844,-500.0,0.00026575,2]
[312201797,1705684344853,-500.0,0.00026575,2]
[312201798,1705684344862,-542.14,0.00026575,2]
[312201799,1705684344872,-354.54307657,0.00026575,2]
[312201800,1705684344881,-500.0,0.00026575,2]
[312201801,1705684344891,-542.59,0.00026575,2]
[312201802,1705684344900,-500.0,0.00026575,2]
[312201803,1705684344910,-730.0,0.00026575,2]
[312201804,1705684344919,-528.39,0.00026575,2]
[312201805,1705684344929,-542.09,0.00026575,2]
[312201806,1705684344938,-500.0,0.00026575,2]
[312201807,1705684344948,-676.04,0.00026575,2]